bitfinex/quotes_ETHUSD_20240716
["timestamp","ask_amount","ask_price","bid_price","bid_amount"]
[1721092456659,9.5,3478.6,3478.5,6.2996]
[1721092457801,9.5,3478.6,3478.5,8.7376]
[1721092458583,9.5,3478.6,3478.5,6.2996]
[1721092461657,11.8331,3478.6,3478.5,6.2996]
[1721092461889,11.95192641,3478.6,3478.5,6.2996]
[1721092462575,9.61882641,3478.6,3478.5,6.2996]
[1721092468607,0.11882641,3478.6,3478.5,9.2996]
[1721092468828,2.3331,3479.4,3479.3,5.74828]
[1721092468971,9.5,3479.5,3479.4,5.7481]
[1721092469174,9.5,3479.5,3479.4,6.2981]
[1721092470034,9.6109637,3479.5,3479.4,9.2981]
[1721092470318,0.1109637,3479.5,3479.4,9.2981]
[1721092470668,2.4056,3480.2,3479.8,2.87365]
[1721092470868,3.60551638,3480.2,3479.9,2.87362]
[1721092471109,0.11108091,3480.1,3479.9,2.87362]
[1721092471619,2.3446,3480.0,3479.6,2.87387]
[1721092471926,2.45594683,3480.0,3479.6,2.87387]
[1721092473574,2.45594683,3480.0,3479.4,6.42405]
[1721092473575,2.45594683,3480.0,3479.7,2.87378]
[1721092473811,2.45594683,3480.0,3479.8,2.87369]
[1721092474328,2.3446,3480.0,3479.8,2.87369]
[1721092475132,2.3446,3480.0,3479.7,2.87378]
[1721092475421,0.11136608,3479.9,3479.7,2.8738]
[1721092476746,0.11136608,3479.9,3479.8,2.87372]
[1721092477106,0.29934804,3480.2,3479.9,2.87364]
[1721092477310,0.29934804,3480.2,3480.0,2.87355]
[1721092477628,0.11136442,3480.1,3479.7,2.8738]
[1721092477831,0.29934804,3480.2,3479.9,2.87357]
[1721092478039,0.11134645,3480.0,3479.9,2.87357]
[1721092478222,0.29934804,3480.2,3479.9,2.87357]
[1721092478386,0.11134645,3480.0,3479.9,2.87357]
[1721092478594,0.29934804,3480.2,3479.7,2.8738]
[1721092478905,0.11134886,3480.0,3479.8,2.87366]
[1721092479136,0.11135097,3480.1,3479.9,2.87364]
[1721092479339,0.29934804,3480.2,3479.9,2.87364]
[1721092479903,0.29934804,3480.2,3479.8,2.87366]
[1721092480241,0.29934804,3480.2,3479.4,3.55]
[1721092480242,0.29934804,3480.2,3479.9,2.87362]
[1721092480913,2.49276379,3480.3,3479.9,2.87362]
[1721092481505,2.49276379,3480.3,3479.6,2.438]
[1721092481706,0.09356379,3480.3,3480.2,2.87339]
[1721092486943,0.09356379,3480.3,3480.2,5.74678]
[1721092487098,0.09356379,3480.3,3480.2,6.29678]
[1721092487943,0.09356379,3480.3,3480.2,2.87339]
[1721092488350,0.20120154,3480.3,3480.2,2.87339]
[1721092488794,0.20120154,3480.3,3479.7,1.731]
[1721092488993,0.20120154,3480.3,3480.1,2.87341]
[1721092489434,2.4176,3480.2,3479.7,5.87379]
[1721092489697,2.52524132,3480.2,3479.7,5.87379]
[1721092490716,2.52524132,3480.2,3479.9,2.87361]
[1721092490929,2.52524132,3480.2,3480.0,3.0]
[1721092491137,0.10764132,3480.2,3480.1,2.87348]
[1721092491355,0.10764132,3480.2,3480.1,3.42348]
[1721092491507,0.09356379,3480.3,3480.2,2.87339]
[1721092492312,0.09356379,3480.3,3480.2,3.42339]
[1721092492512,0.09356379,3480.3,3480.2,2.87339]
[1721092493321,0.09356379,3480.3,3480.0,5.87355]
[1721092493533,0.09356379,3480.3,3479.8,2.87372]
[1721092493850,2.3234,3480.2,3479.9,2.87362]
[1721092494652,2.3234,3480.2,3479.7,2.8738]
[1721092494874,2.3234,3480.2,3479.8,5.87371]
[1721092495032,2.3234,3480.2,3479.8,2.87371]
[1721092495945,2.3234,3480.2,3479.6,3.0]
[1721092496146,3.51509638,3480.2,3479.6,2.87387]
[1721092496554,3.51509638,3480.2,3479.7,3.0]
[1721092499040,3.51509638,3480.2,3479.6,2.87387]
[1721092499956,0.10768484,3480.1,3479.6,2.87387]
[1721092501452,2.87387,3479.7,3478.9,7.37]
[1721092501692,2.2809,3479.6,3478.9,2.87445]
[1721092501851,2.38858986,3479.6,3478.9,2.87445]
[1721092502056,2.38858986,3479.6,3479.0,2.87438]
[1721092502251,2.38858986,3479.6,3478.8,2.8745]
[1721092502478,2.38858986,3479.6,3478.7,2.87461]
[1721092502479,2.372,3479.5,3478.7,2.87461]
[1721092502852,0.1076238,3479.4,3478.7,2.87461]
[1721092503055,0.1076238,3479.4,3478.8,2.87453]
[1721092504386,0.1076238,3479.4,3478.6,9.101]
[1721092504559,0.1076238,3479.4,3479.3,5.74828]
[1721092504875,9.5,3479.7,3479.6,2.87389]
[1721092505087,9.5,3479.7,3479.6,5.74778]
[1721092505281,9.5,3479.7,3479.6,6.29778]
[1721092505661,9.5,3479.7,3479.6,9.29778]
[1721092508474,11.9874,3479.7,3479.6,3.0]
[1721092509001,11.9874,3479.7,3479.3,2.87412]
[1721092509629,13.27633393,3479.7,3478.9,2.87439]
[1721092509824,13.27633393,3479.7,3478.6,7.37]
[1721092509825,13.57642725,3479.7,3479.0,2.87437]
[1721092510186,14.47836657,3479.7,3479.0,2.87437]
[1721092510387,2.2592,3479.6,3478.8,2.87452]
[1721092510702,3.16113932,3479.6,3478.9,2.87446]
[1721092510914,2.2592,3479.6,3478.9,2.87446]
[1721092511098,3.68157467,3479.6,3479.0,3.0]
[1721092512382,2.2592,3479.6,3479.0,5.87438]
[1721092512583,2.2592,3479.6,3479.1,2.87422]
[1721092512883,2.2592,3479.6,3479.2,2.87415]
[1721092513286,9.5,3479.7,3479.4,2.87398]
[1721092514295,9.5,3479.7,3479.6,5.74778]
[1721092514504,9.5,3479.7,3479.6,9.29778]
[1721092520023,9.5,3479.7,3479.6,13.90267]
[1721092520231,0.09356379,3480.3,3480.2,2.87339]
[1721092520432,0.20123265,3480.3,3480.2,2.87339]
[1721092521114,0.20123265,3480.3,3480.2,6.29678]
[1721092521424,0.20123265,3480.3,3480.2,9.29678]
[1721092521622,0.09356379,3480.3,3480.2,9.29678]
[1721092523123,0.09356379,3480.3,3480.2,2.87339]
[1721092523512,0.20132206,3480.3,3480.2,2.87339]
[1721092523711,2.3383,3480.2,3480.1,2.87346]
[1721092523913,2.3383,3480.2,3479.8,5.87372]
[1721092523914,3.53148638,3480.2,3479.8,2.87372]
[1721092524111,3.63925347,3480.2,3479.8,2.87372]
[1721092524919,3.63925347,3480.2,3479.3,1.731]
[1721092524920,3.63925347,3480.2,3479.4,2.87402]
[1721092525123,4.54270802,3480.2,3479.4,2.87402]
[1721092525315,4.54270802,3480.2,3479.5,3.0]
[1721092525499,0.87142679,3480.1,3479.8,2.87372]
[1721092525885,0.10774273,3480.0,3479.8,2.87372]
[1721092526091,0.10774273,3480.0,3479.5,5.8739]
[1721092526291,0.10774273,3480.0,3479.7,2.87373]
[1721092527538,0.10774273,3480.0,3479.7,2.84871846]
[1721092527716,0.10774273,3480.0,3479.5,5.87396]
[1721092527915,0.65851015,3480.0,3479.5,3.0]
[1721092528301,0.65851015,3480.0,3479.5,5.87396]
[1721092529728,0.65851015,3480.0,3479.2,2.87421]
[1721092529903,3.19885455,3479.9,3479.2,2.8742]
[1721092530092,3.47436966,3479.9,3479.3,3.0]
[1721092530298,0.10764263,3479.8,3479.3,3.0]
[1721092530926,0.10764263,3479.8,3479.4,2.87402]
[1721092531295,0.10764263,3479.8,3479.5,2.87397]
[1721092532371,0.10764263,3479.8,3479.7,2.87381]
[1721092535464,9.5,3480.0,3479.8,2.87368]
[1721092535627,0.10763738,3479.9,3479.8,2.87368]
[1721092535975,0.10763738,3479.9,3479.8,6.2974]
[1721092537047,0.10763738,3479.9,3479.8,9.2974]
[1721092537248,9.5,3480.0,3479.9,5.74728]
[1721092537473,9.60765429,3480.0,3479.9,9.29728]
[1721092538067,0.10765429,3480.0,3479.9,9.29728]
[1721092538241,0.09356379,3480.3,3480.2,5.74678]
[1721092538430,0.201222,3480.3,3480.2,9.29678]
[1721092539172,0.201222,3480.3,3480.2,11.02778]
[1721092539335,0.201222,3480.3,3480.2,13.90117]
[1721092543895,0.201222,3480.3,3480.2,11.02778]
[1721092544073,0.201222,3480.3,3480.2,9.29678]
[1721092545790,0.201222,3480.3,3480.2,13.90117]
[1721092546003,0.09356379,3480.3,3480.2,13.90117]
[1721092546236,0.09356379,3480.3,3480.2,16.77456]
[1721092546685,1e-08,3480.3,3480.2,13.90117]
[1721092546920,1e-08,3480.3,3480.2,11.02778]
[1721092547298,1e-08,3480.3,3480.2,13.90117]
[1721092547839,1e-08,3480.3,3480.2,11.02778]
[1721092548037,1e-08,3480.3,3480.2,13.90117]
[1721092548329,1e-08,3480.3,3480.2,11.02778]
[1721092549332,1e-08,3480.3,3480.2,8.02778]
[1721092551127,1e-08,3480.3,3480.2,11.02778]
[1721092552147,1e-08,3480.3,3480.2,16.33917]
[1721092552311,1e-08,3480.3,3480.2,19.21256]
[1721092552890,1e-08,3480.3,3480.2,20.21156951]
[1721092553188,1e-08,3480.3,3480.2,16.33917]
[1721092554126,1e-08,3480.3,3480.2,13.90117]
[1721092556359,2.47170001,3480.3,3479.8,2.87372]
[1721092556566,2.47170001,3480.3,3480.1,2.87343]
[1721092556717,2.71887001,3480.3,3480.1,2.87343]
[1721092556915,0.1045284,3480.2,3480.1,2.87343]
[1721092557344,2.47170001,3480.3,3480.1,2.87343]
[1721092557571,0.10443805,3480.2,3480.1,2.87343]
[1721092557955,2.47170001,3480.3,3480.1,2.87343]
[1721092558159,2.47170001,3480.3,3480.2,2.87339]
[1721092558356,2.47170001,3480.3,3480.2,5.74678]
[1721092559894,0.10429706,3480.3,3480.2,5.74678]
[1721092561756,0.10429706,3480.3,3480.0,5.87353]
[1721092561994,0.10429706,3480.3,3480.0,3.0]
[1721092562160,2.2741,3480.2,3480.0,3.0]
[1721092562689,2.2741,3480.2,3480.0,8.74712]
[1721092562690,0.10431653,3480.1,3480.0,8.74712]
[1721092564303,0.10431653,3480.1,3480.0,5.87356]
[1721092564460,0.10431653,3480.1,3479.6,10.09783878]
[1721092564461,0.34215818,3480.1,3479.6,10.09783878]
[1721092564794,2.2945,3480.0,3479.6,7.22395878]
[1721092565184,0.1042773,3479.9,3479.6,7.22395878]
[1721092565707,0.1042773,3479.9,3479.6,10.09784878]
[1721092566508,0.34415503,3479.9,3479.6,7.22395878]
[1721092566887,0.64432126,3479.9,3479.6,7.22395878]
[1721092568299,0.40444353,3479.9,3479.6,7.22395878]
[1721092568780,0.40444353,3479.9,3479.5,2.87396]
[1721092571005,0.40444353,3479.9,3479.6,2.87389]
[1721092571218,0.1042773,3479.9,3479.8,2.87372]
[1721092571743,0.1042773,3479.9,3479.0,10.22395878]
[1721092571920,0.1042773,3479.9,3479.6,2.87383]
[1721092572119,0.37417384,3479.9,3479.4,2.87404]
[1721092572318,0.1042773,3479.9,3479.4,2.87404]
[1721092572732,0.1042773,3479.9,3479.6,2.87381]
[1721092574149,0.1042773,3479.9,3479.7,2.87378]
[1721092574619,0.1042773,3479.9,3479.8,2.87372]
[1721092575550,0.1042773,3479.9,3479.7,2.87378]
[1721092575840,0.1042773,3479.9,3479.7,2.87376]
[1721092576041,0.1042773,3479.9,3479.5,2.87397]
[1721092576273,0.1042773,3479.9,3479.6,3.0]
[1721092576620,0.34415503,3479.9,3479.6,3.0]
[1721092576819,0.34415503,3479.9,3479.4,2.87405]
[1721092577429,0.1042773,3479.9,3479.4,2.87405]
[1721092578354,0.1042773,3479.9,3479.5,2.87395]
[1721092580541,0.1042773,3479.9,3479.6,2.87387]
[1721092580732,0.1042773,3479.9,3479.7,2.87378]
[1721092581862,0.1042773,3479.9,3479.6,2.87387]
[1721092581863,0.1042773,3479.9,3479.8,2.87372]
[1721092583282,9.50000001,3480.3,3480.0,2.87354]
[1721092583573,9.50000001,3480.3,3479.8,2.87372]
[1721092583574,2.4938,3480.1,3479.9,2.87363]
[1721092583736,2.4938,3480.1,3479.6,2.87387]
[1721092583939,0.10404324,3480.0,3479.6,2.87387]
[1721092584546,0.10404324,3480.0,3479.9,2.87364]
[1721092585655,0.10404324,3480.0,3479.9,5.74728]
[1721092586043,9.50000001,3480.3,3480.2,2.87339]
[1721092586243,9.60404687,3480.3,3480.2,2.87339]
[1721092586988,9.60404687,3480.3,3480.2,5.74678]
[1721092587471,9.50000001,3480.3,3480.2,5.74678]
[1721092587683,9.60410817,3480.3,3480.2,5.74678]
[1721092587837,9.60410817,3480.3,3480.2,2.87339]
[1721092588280,9.60410817,3480.3,3480.2,5.74678]
[1721092594243,9.60410817,3480.3,3480.2,7.47378]
[1721092594497,0.10410817,3480.3,3480.2,16.33517]
[1721092594776,1e-08,3480.3,3480.2,16.33517]
[1721092594986,1e-08,3480.3,3480.2,18.82747]
[1721092597156,1e-08,3480.3,3480.2,21.70086]
[1721092597644,1e-08,3480.3,3480.2,18.82747]
[1721092597846,1e-08,3480.3,3480.2,16.33517]
[1721092598596,1e-08,3480.3,3480.2,19.20856]
[1721092599258,9.5,3481.4,3481.3,5.74498]
[1721092599453,9.60085748,3481.4,3481.3,8.74498]
[1721092600181,9.60085748,3481.4,3481.3,13.34447]
[1721092600350,0.00085748,3481.4,3481.3,13.89447]
[1721092600546,9.5,3482.2,3482.1,5.74366]
[1721092600746,9.5,3482.2,3482.1,2.87183]
[1721092600949,9.59781332,3482.2,3482.1,2.87183]
[1721092601190,9.5,3482.2,3482.1,2.87183]
[1721092601482,9.59781332,3482.2,3482.1,5.74366]
[1721092601958,9.59781332,3482.2,3482.1,2.87183]
[1721092602282,11.90571332,3482.2,3482.1,2.87183]
[1721092602472,11.90571332,3482.2,3482.0,2.87191]
[1721092602671,11.90571332,3482.2,3482.1,2.87183]
[1721092603057,11.8079,3482.2,3482.1,2.87183]
[1721092603263,11.90588324,3482.2,3482.1,2.87183]
[1721092604903,11.90588324,3482.2,3482.1,5.74366]
[1721092605398,9.59798324,3482.2,3482.1,8.74366]
[1721092605553,0.09798324,3482.2,3482.1,8.74366]
[1721092606051,2.3407,3482.7,3482.5,2.87142]
[1721092606260,0.09800601,3482.6,3482.5,2.87142]
[1721092607763,0.09800601,3482.6,3482.5,13.34142]
[1721092607986,0.09800601,3482.6,3482.5,16.76292]
[1721092608196,0.0054565,3482.8,3482.7,10.34099]
[1721092608402,0.0054565,3482.8,3482.7,13.32899]
[1721092608574,0.0054565,3482.8,3482.7,16.32899]
[1721092609878,0.0054565,3482.8,3482.7,5.87133]
[1721092610400,2.4221,3482.7,3481.9,9.66195878]
[1721092610573,2.4221,3482.7,3482.4,2.87156]
[1721092610759,2.4221,3482.7,3482.2,2.87171]
[1721092610966,0.09191377,3482.6,3482.2,2.87168]
[1721092611200,0.09191377,3482.6,3482.5,2.8715]
[1721092612170,0.09191377,3482.6,3482.5,5.743]
[1721092612367,0.09191377,3482.6,3482.5,2.8715]
[1721092612599,2.4221,3482.7,3482.6,2.87141]
[1721092613492,2.4221,3482.7,3482.4,2.87154]
[1721092613697,2.4221,3482.7,3482.1,1.727]
[1721092613698,2.4221,3482.7,3482.5,2.87144]
[1721092614428,2.4221,3482.7,3482.2,2.87174]
[1721092614628,2.4221,3482.7,3482.3,3.0]
[1721092614629,2.66485565,3482.7,3482.3,3.0]
[1721092614844,0.09172314,3482.6,3482.1,2.87176]
[1721092615022,0.09172314,3482.6,3482.2,3.0]
[1721092615396,0.09172314,3482.6,3482.2,5.87174]
[1721092615896,0.09172314,3482.6,3482.2,3.0]
[1721092616215,0.36792667,3482.6,3482.0,2.87187]
[1721092616421,0.36792667,3482.6,3482.1,3.0]
[1721092616591,0.36792667,3482.6,3482.2,2.87174]
[1721092617038,0.36792667,3482.6,3482.0,5.8719]
[1721092617039,0.09172314,3482.6,3482.3,2.87165]
[1721092617326,0.09172314,3482.6,3482.5,2.8715]
[1721092617695,0.09172314,3482.6,3482.3,2.87165]
[1721092617894,0.09172314,3482.6,3482.4,2.87154]
[1721092618436,0.09172314,3482.6,3482.5,2.8715]
[1721092618631,0.09172314,3482.6,3482.5,5.8715]
[1721092619633,0.09172314,3482.6,3482.5,8.743]
[1721092620402,0.09172314,3482.6,3482.5,5.8715]
[1721092620645,0.09172314,3482.6,3482.5,8.743]
[1721092622316,0.09172314,3482.6,3482.5,9.293]
[1721092623116,0.0054565,3482.8,3482.7,5.74266]
[1721092623448,0.0054565,3482.8,3482.7,6.29266]
[1721092623605,0.0054565,3482.8,3482.7,9.29266]
[1721092625516,0.0054565,3482.8,3482.7,12.16399]
[1721092625932,0.0054565,3482.8,3482.7,14.60199]
[1721092626137,0.0054565,3482.8,3482.7,16.32899]
[1721092627250,0.0054565,3482.8,3482.7,18.79889]
[1721092628173,0.0054565,3482.8,3482.7,9.29266]
[1721092628662,0.0054565,3482.8,3482.7,8.74266]
[1721092629029,0.0054565,3482.8,3482.7,5.87133]
[1721092629615,0.09731531,3482.8,3482.6,2.8714]
[1721092629812,0.0054565,3482.8,3482.7,11.05199]
[1721092630048,0.1217007,3483.8,3483.7,2.87051]
[1721092630348,0.21049287,3483.8,3483.7,2.87051]
[1721092630649,0.21049287,3483.8,3483.4,2.8707]
[1721092630855,0.1217007,3483.8,3483.5,3.0]
[1721092631062,0.08879006,3483.7,3483.5,5.87066]
[1721092631353,0.1217007,3483.8,3483.5,3.0]
[1721092631653,0.08885748,3483.7,3483.4,3.0]
[1721092631865,2.3108,3483.6,3483.1,7.22395878]
[1721092632216,2.3996997,3483.5,3482.6,2.8714]
[1721092632447,2.87091,3483.3,3482.4,7.22395878]
[1721092632751,2.3108,3482.8,3482.4,7.22395878]
[1721092632959,2.3108,3482.8,3482.0,2.87189]
[1721092633324,3.778999,3482.8,3482.0,2.87189]
[1721092633531,0.08869927,3482.7,3482.1,2.87175]
[1721092633955,0.08869927,3482.7,3482.2,2.87174]
[1721092634117,0.08869927,3482.7,3481.7,7.22395878]
[1721092634319,0.08869927,3482.7,3482.5,2.87142]
[1721092634553,0.08869927,3482.7,3482.6,2.87141]
[1721092634868,9.5,3482.9,3482.6,2.8714]
[1721092635047,0.08851275,3482.7,3482.6,8.74281]
[1721092635262,9.5,3482.9,3482.6,8.74281]
[1721092635263,9.5,3482.9,3482.8,2.87125]
[1721092636641,9.5,3482.9,3482.8,5.7425]
[1721092637135,9.5,3482.9,3482.8,8.7425]
[1721092637924,9.5,3482.9,3482.8,5.87125]
[1721092639469,9.5,3482.9,3482.8,8.7425]
[1721092640029,9.5,3482.9,3482.8,9.2925]
[1721092640262,9.5,3482.9,3482.8,8.7425]
[1721092642063,9.5,3482.9,3482.8,5.87125]
[1721092642633,9.5,3482.9,3482.8,8.7425]
[1721092642963,9.5,3482.9,3482.8,5.87125]
[1721092643564,9.5,3482.9,3482.8,8.7425]
[1721092644062,9.5,3482.9,3482.8,5.87125]
[1721092644285,9.5,3482.9,3482.8,3.0]
[1721092644572,10.53577257,3482.9,3482.7,3.0]
[1721092644777,9.58577257,3482.9,3482.7,5.87132]
[1721092646270,9.58577257,3482.9,3482.8,5.7425]
[1721092646667,9.58577257,3482.9,3482.8,2.87125]
[1721092647165,9.58577257,3482.9,3482.8,5.7425]
[1721092647367,9.58577257,3482.9,3482.8,13.4575]
[1721092647684,9.5,3482.9,3482.8,13.4575]
[1721092647841,9.5,3482.9,3482.8,16.32875]
[1721092648036,9.58571848,3482.9,3482.8,16.32875]
[1721092648351,9.5,3482.9,3482.8,12.9075]
[1721092648667,9.58571998,3482.9,3482.8,8.7425]
[1721092649368,9.58571998,3482.9,3482.8,5.87125]
[1721092649753,9.5,3482.9,3482.8,5.87125]
[1721092650066,9.58575312,3482.9,3482.8,5.87125]
[1721092651251,9.58575312,3482.9,3482.8,8.7425]
[1721092651474,9.58575312,3482.9,3482.8,13.89075]
[1721092651677,2.4543007,3483.8,3483.6,2.87058]
[1721092651887,9.5,3483.7,3483.6,2.87058]
[1721092652086,9.58575687,3483.7,3483.6,8.74117]
[1721092653390,9.5,3483.7,3483.6,8.74117]
[1721092653697,9.58580398,3483.7,3483.6,8.74117]
[1721092654373,9.58580398,3483.7,3483.6,13.33876]
[1721092654583,0.08580398,3483.7,3483.6,16.32676]
[1721092654905,0.1217007,3483.8,3483.7,10.33853]
[1721092655074,0.1217007,3483.8,3483.7,13.88853]
[1721092655390,0.2075814,3483.8,3483.7,13.88853]
[1721092655557,0.1217007,3483.8,3483.7,13.88853]
[1721092657259,0.1217007,3483.8,3483.7,8.74102]
[1721092658993,0.1217007,3483.8,3483.7,13.88853]
[1721092659197,0.1217007,3483.8,3483.7,11.01802]
[1721092659372,0.1217007,3483.8,3483.7,8.74102]
[1721092659716,0.1217007,3483.8,3483.7,13.33853]
[1721092659872,0.1217007,3483.8,3483.7,13.88853]
[1721092660284,0.1217007,3483.8,3483.7,16.75904]
[1721092660510,0.1217007,3483.8,3483.7,16.27083]
[1721092661897,0.1217007,3483.8,3483.7,19.14134]
[1721092662798,0.1217007,3483.8,3483.7,13.88853]
[1721092667604,0.1217007,3483.8,3483.7,10.46802]
[1721092668186,0.20497025,3483.8,3483.7,13.33853]
[1721092668391,0.1217007,3483.8,3483.7,13.33853]
[1721092669073,0.1217007,3483.8,3483.7,11.01802]
[1721092669474,0.1217007,3483.8,3483.7,13.88853]
[1721092670893,0.1217007,3483.8,3483.7,11.01802]
[1721092671097,0.1217007,3483.8,3483.7,8.74102]
[1721092671612,2.60486423,3483.8,3483.7,5.87051]
[1721092671776,2.5216007,3483.8,3483.7,2.87051]
[1721092671978,2.60484616,3483.8,3483.5,2.87067]
[1721092672206,2.60484616,3483.8,3483.5,2.87061]
[1721092672980,2.60484616,3483.8,3483.6,2.87057]
[1721092673709,2.60484616,3483.8,3483.7,2.87051]
[1721092674076,2.60484616,3483.8,3483.7,5.74102]
[1721092674471,2.60484616,3483.8,3483.7,6.29102]
[1721092674472,0.20494616,3483.8,3483.7,6.29102]
[1721092675418,0.20494616,3483.8,3483.7,5.74102]
[1721092676731,0.20494616,3483.8,3483.7,8.74102]
[1721092677031,0.1217007,3483.8,3483.7,8.74102]
[1721092677528,0.1217007,3483.8,3483.7,16.32653]
[1721092679501,0.1217007,3483.8,3483.7,9.29102]
[1721092679816,0.20496271,3483.8,3483.7,9.29102]
[1721092679986,0.1217007,3483.8,3483.7,9.29102]
[1721092681931,2.5132007,3483.8,3483.7,9.29102]
[1721092683209,0.1217007,3483.8,3483.7,9.29102]
[1721092685429,0.1217007,3483.8,3483.7,11.01802]
[1721092685589,0.20492657,3483.8,3483.7,13.45602]
[1721092686317,0.20492657,3483.8,3483.7,16.32653]
[1721092686685,0.1217007,3483.8,3483.7,16.32653]
[1721092687017,1e-08,3483.8,3483.7,20.64858933]
[1721092687236,2.4432,3484.7,3484.6,5.73952]
[1721092687517,2.4432,3485.3,3485.1,2.8693]
[1721092687725,2.4432,3485.3,3485.0,2.86943]
[1721092687926,3.6975502,3485.3,3485.0,2.86943]
[1721092688459,9.5,3485.4,3485.2,2.438]
[1721092688589,3.2774375,3485.8,3485.7,2.86886]
[1721092688590,2.3769,3485.8,3485.7,2.86886]
[1721092688786,2.3769,3485.8,3485.7,5.86886]
[1721092689013,2.3769,3485.8,3485.1,2.86929]
[1721092689212,2.67600962,3485.8,3485.4,2.86909]
[1721092689644,2.67600962,3485.8,3485.6,2.86888]
[1721092690043,2.67600962,3485.8,3485.7,2.86886]
[1721092690243,2.3769,3485.8,3485.7,2.86886]
[1721092690408,2.3769,3485.8,3485.7,5.73772]
[1721092694845,2.45219541,3485.8,3485.7,5.73772]
[1721092696713,2.45219541,3485.8,3485.7,2.86886]
[1721092696956,2.69741495,3485.8,3485.2,3.0]
[1721092697215,2.3431,3485.7,3485.2,5.7385]
[1721092697447,0.07550606,3485.6,3485.3,2.86917]
[1721092697649,2.3431,3485.7,3485.6,2.86894]
[1721092697834,2.4186025,3485.7,3485.4,2.86907]
[1721092698833,2.4186025,3485.7,3485.5,2.86901]
[1721092699045,2.4186025,3485.7,3485.6,2.86894]
[1721092699243,2.4186025,3485.7,3485.6,5.73788]
[1721092701951,0.0755025,3485.7,3485.6,6.28788]
[1721092702254,2.426,3486.1,3486.0,2.86861]
[1721092702435,2.49897911,3486.1,3486.0,2.86861]
[1721092703738,2.49897911,3486.1,3486.0,5.73722]
[1721092703944,0.07297911,3486.1,3486.0,5.73722]
[1721092704352,9.5,3486.3,3486.2,2.86845]
[1721092704526,9.5,3486.3,3486.2,5.7369]
[1721092704882,6.63237,3487.2,3487.1,5.73541]
[1721092705841,6.63237,3487.2,3487.1,6.28541]
[1721092706028,6.63237,3487.2,3487.1,5.73541]
[1721092706228,6.53237,3487.2,3487.1,2.8677]
[1721092706565,6.53237,3487.2,3486.3,2.86832]
[1721092706766,6.90673292,3487.2,3486.6,2.86809]
[1721092706927,2.2791,3487.1,3486.3,2.86836]
[1721092707123,2.57902998,3487.1,3486.3,2.86836]
[1721092707330,5.44680998,3487.1,3486.2,7.22395878]
[1721092707530,4.40207036,3487.0,3486.2,7.22395878]
[1721092707880,2.86788,3486.9,3485.9,2.86869]
[1721092708182,2.4825,3486.4,3485.5,7.22395878]
[1721092708343,2.4825,3486.4,3485.4,2.86904]
[1721092708547,2.4825,3486.4,3485.5,2.86895]
[1721092708745,0.53507,3486.3,3485.6,2.86891]
[1721092709270,0.53507,3486.3,3485.4,2.8691]
[1721092709470,0.53507,3486.3,3485.1,2.86929]
[1721092709471,2.86847,3486.2,3485.2,2.8692]
[1721092709651,0.53507,3486.3,3485.3,3.0]
[1721092709652,2.86853,3486.1,3485.3,3.0]
[1721092709979,2.86884,3485.8,3484.8,2.86957]
[1721092710170,2.3087,3485.6,3484.8,2.86957]
[1721092710574,2.3087,3485.6,3484.6,2.86976]
[1721092710575,0.07057473,3485.5,3484.6,2.86976]
[1721092710808,2.93964473,3485.5,3484.6,2.86976]
[1721092711100,2.93964473,3485.5,3484.7,2.86968]
[1721092711101,0.07057473,3485.5,3484.7,2.86968]
[1721092711406,0.07057473,3485.5,3485.0,2.86943]
[1721092711710,9.4,3485.8,3483.8,7.22395878]
[1721092711711,9.4,3485.8,3485.6,2.86891]
[1721092711999,10.34,3485.8,3485.4,2.86911]
[1721092712146,10.34,3485.8,3484.8,10.22395878]
[1721092712147,10.34,3485.8,3485.2,2.86925]
[1721092712549,10.34,3485.8,3485.6,2.86894]
[1721092713682,10.34,3485.8,3485.6,5.73788]
[1721092713879,9.4,3485.8,3485.7,2.86886]
[1721092714174,9.4,3485.8,3484.8,13.09347878]
[1721092714175,9.4,3485.8,3485.5,2.86895]
[1721092714385,9.4,3485.8,3485.6,2.86894]
[1721092715493,9.4,3485.8,3485.7,2.86886]
[1721092716006,9.4,3485.8,3485.5,2.86901]
[1721092716350,9.4,3485.8,3485.6,2.86894]
[1721092717151,9.4,3485.8,3485.7,2.86886]
[1721092717487,9.4,3485.8,3485.4,2.86909]
[1721092717881,10.34,3485.8,3485.4,2.86909]
[1721092718387,10.34,3485.8,3485.1,2.86934]
[1721092718560,10.34,3485.8,3485.2,5.86927]
[1721092719153,10.34,3485.8,3485.3,2.86918]
[1721092720697,10.34,3485.8,3485.2,3.0]
[1721092720698,9.4,3485.8,3485.6,2.86888]
[1721092721109,9.4,3485.8,3485.7,2.86886]
[1721092721391,9.4,3485.8,3485.7,6.28772]
[1721092723189,2.3092,3486.7,3486.1,2.86851]
[1721092723372,9.4,3486.5,3486.4,2.86826]
[1721092723752,9.47059846,3486.5,3486.4,2.86826]
[1721092723987,9.47059846,3486.5,3486.4,3.41826]
[1721092724292,9.47059846,3486.5,3486.4,6.28654]
[1721092724465,0.07059846,3486.5,3486.4,12.15482]
[1721092724789,9.5217007,3487.3,3486.9,2.86785]
[1721092725093,1.02285636,3487.2,3487.0,2.86778]
[1721092726057,0.07068629,3487.2,3487.0,2.86778]
[1721092726273,9.5217007,3487.3,3487.1,2.86771]
[1721092726475,0.07076908,3487.2,3487.1,5.73542]
[1721092726708,9.5217007,3487.3,3487.2,2.86763]
[1721092726907,9.5217007,3487.3,3487.2,5.73526]
[1721092727591,9.5217007,3487.3,3487.2,6.28526]
[1721092728907,0.1217007,3487.3,3487.2,9.28526]
[1721092729272,0.1217007,3487.3,3487.2,12.15289]
[1721092729473,9.4,3488.1,3487.2,13.37676]
[1721092729712,3.77089048,3489.6,3488.9,2.86618]
[1721092729713,2.2734,3489.6,3488.9,2.86618]
[1721092730008,0.23275906,3489.5,3487.7,10.22395878]